Cogmind - Beta 16 @@@ ROGUE MODE // 2026.01.30 @ 09:35:58 Player: shapeshifter Result: Destroyed by G-34 Mercenary with Small Laser Performance ------------- Evolutions (0) 0 Regions Visited (2) 400 Robots Destroyed (22) 110 Value Destroyed (655) 655 Prototype IDs (12) 240 Alien Tech Used (0) 0 Bonus (-42) -42 TOTAL SCORE: 1363 Bonus ------- Friendly Fire -42 Cogmind --------- Core Integrity 0/250 Matter 290/300 Energy 5/100 System Corruption 0% Temperature Cool (6) Movement Rolling (110) Location -10/Subcaves Parts ------- > --- POWER (1) -------- (None) > --- PROPULSION (2) --- Subdweller Monowheel > --- UTILITY (2) ------ Medium Storage Unit Improved Terrain Scanner > --- WEAPON (2) ------- Medium Laser > --- INVENTORY (10) --- Meta Core Subdweller Monowheel High-capacity Storage Unit Huge Storage Unit Tractor Beam Subdweller Beam Cannon Datajack Peak State ------------ > --- POWER ------------ Light Ion Engine > --- PROPULSION ------- Subdweller Monowheel Subdweller Monowheel > --- UTILITY ---------- Medium Storage Unit Improved Terrain Scanner > --- WEAPON ----------- Subdweller Laser Subdweller Laser > --- INVENTORY -------- Meta Core Subdweller Monowheel High-capacity Storage Unit Huge Storage Unit Tractor Beam Medium Laser Datajack [Rating: 15] Favorites ----------- Power Ion Engine Engine Ion Engine Propulsion Light Treads Treads Light Treads Wheel Subdweller Monowheel Utility Seismic Detector Device Seismic Detector Storage Small Storage Unit Weapon Assault Rifle Energy Gun Subdweller Laser Ballistic Gun Assault Rifle Build | -11 -10 -10 ------- Run | Yrd Mat Sub Slots Evolved . | . . . Power . | . . . Propulsion . | . . . Utility . | . . . Weapon . | . . . Parts Attached 16 | 7 1 8 Power 2 | 1 . 1 Engine 2 | 1 . 1 Core . | . . . Reactor . | . . . Propulsion 5 | 2 . 3 Treads 2 | 2 . . Leg . | . . . Wheel 3 | . . 3 Hover . | . . . Flight . | . . . Utility 4 | 2 1 1 Device 2 | 1 . 1 Storage 2 | 1 1 . Processor . | . . . Hackware . | . . . Protection . | . . . Artifact . | . . . Weapon 5 | 2 . 3 Energy Gun 3 | . . 3 Energy Cannon . | . . . Ballistic Gun 2 | 2 . . Ballistic Cannon . | . . . Launcher . | . . . Special Weapon . | . . . Impact Weapon . | . . . Slashing Weapon . | . . . Piercing Weapon . | . . . Special Melee Weapon . | . . . Unidentified Prototypes . | . . . Parts Lost 10 | . . 10 Power 2 | . . 2 Propulsion 3 | . . 3 Utility 1 | . . 1 Weapon 4 | . . 4 Highest Loss Streak 6 | . . 6 To Critical Strikes . | . . . Average Backups 5 | 2 5 7 Power . | . 1 . Propulsion . | . . . Utility 2 | . 2 3 Weapon 1 | 1 1 1 Tool/Special . | . . . Unused Backups 7 | 1 . 6 Power 1 | 1 . . Propulsion . | . . . Utility 3 | . . 3 Weapon 1 | . . 1 Tool/Special 2 | . . 2 Average Slot Usage (%) 95 | . 99 88 Engine 13 | . 14 11 Treads 20 | . 27 6 Wheel 6 | . . 16 Device 12 | . 14 10 Storage 14 | . 14 14 Energy Gun 7 | . . 19 Ballistic Gun 20 | . 27 7 Peak Build Rating 15 | 7 7 15 Average Rating 7 | 5 6 10 On Entrance 4 | . 7 7 Avg Prop Armor Cover (%) 6 | . . 6 Naked Turns . | . . . Heaviest Build 22 | 15 20 22 Greatest Support 40 | 40 40 40 Greatest Overweight (x) 6 | . 4 6 Average Overweight (x) . | . . . Largest Inventory Capacity 10 | 8 10 10 Average Capacity 8 | 7 8 10 Most Carried 9 | 5 7 9 Average Carried 5 | 2 5 7 Final Capacity 10 | 8 10 10 Final Carried 7 | 3 7 7 Class Distribution -------------------- 80% | Mutant 19% | Scavenger-Mutant Dominant Class ---------------- Mutant | -10/Materials Scavenger-Mutant | -10/Subcaves Resources | -11 -10 -10 ----------- Run | Yrd Mat Sub Matter Collected 724 | 290 320 114 Remotely . | . . . Salvage Created 1062 | 110 625 327 Parts 52 | 6 25 21 Haulers Intercepted 2 | . 2 . Recyclers Shooed 2 | 1 1 . Parts Field Recycled . | . . . Retrieved Matter . | . . . Parts Self-Destructed 2 | . . 2 Prevented . | . . . Parts Restored . | . . . Kills | -11 -10 -10 ------- Run | Yrd Mat Sub Combat Hostiles Destroyed 15 | . 8 7 Guns 15 | . 8 7 Classes Destroyed 8 | 2 3 3 Tunneler 1 | 1 . . Hauler 2 | . 2 . Recycler 3 | 1 2 . Watcher 1 | . 1 . Grunt 9 | . 8 1 Sentry 1 | . . 1 Artisan 1 | . . 1 Subdweller 5 | . . 5 Best Kill Streak 3 | 2 3 2 Combat Bots Only 2 | . 2 2 Max Kills in Single Turn 1 | 1 1 1 Gunslinging . | . . . Exploded . | . . . Melee . | . . . Uniques/NPCs Destroyed . | . . . Combat | -11 -10 -10 -------- Run | Yrd Mat Sub Hostile Shots Fired 94 | . 35 59 Missed 22 | . 5 17 Hits 72 | . 30 42 Projectile 72 | . 30 42 Critical Strikes 2 | . 1 1 Damage Taken 1196 | . 388 808 Core 252 | . 87 165 Absorbed by Shields . | . . . Core Remaining (%) 100 | 100 . . Volleys Fired 85 | 8 42 35 Largest 2 | 2 2 2 Hottest 120 | 40 40 120 Shots Fired 166 | 16 84 66 Gun 166 | 16 84 66 Cannon . | . . . Launcher . | . . . Special . | . . . Kinetic 123 | 16 84 23 Thermal 43 | . . 43 Explosive . | . . . Electromagnetic . | . . . Robot Hit Streak 18 | 8 9 18 Robot Miss Streak 5 | 1 5 1 Penetration Max . | . . . Secondary Targets 3 | . 2 1 Max Gunslinging Chain 1 | . 1 1 Shots Hit Robots 109 | 12 53 44 Core Hits 43 | 3 26 14 Critical Kills . | . . . Critical Parts Destroyed 1 | . . 1 Critical Strikes 2 | . . 2 Burn 1 | . . 1 Destroy 1 | . . 1 Melee Attacks . | . . . Impact . | . . . Slashing . | . . . Piercing . | . . . Sneak Attacks . | . . . Combat Hostiles . | . . . Follow-up Attacks . | . . . Damage Inflicted 1561 | 156 713 692 Guns 1561 | 156 713 692 Cannons . | . . . Explosions . | . . . Melee . | . . . Ramming . | . . . Kinetic 1095 | 156 713 226 Thermal 466 | . . 466 Explosive . | . . . Electromagnetic . | . . . Impact . | . . . Slashing . | . . . Piercing . | . . . Highest Corruption . | . . . Average Corruption . | . . . Corruption Purged . | . . . Corruption Blocked . | . . . Overload Shots . | . . . Overflow Damage . | . . . Projectiles . | . . . Explosions . | . . . Melee . | . . . Knockbacks . | . . . Impact . | . . . Kinetic . | . . . Secondary . | . . . Self-Inflicted Damage . | . . . Shots . | . . . Rammed . | . . . Targets Rammed . | . . . Kicked . | . . . Crushed . | . . . Highest Temperature 27 | . 20 27 Average Temperature 11 | . 6 15 Received Heat Transfer 486 | . 225 261 Siege Activations . | . . . Martial Activations . | . . . Shielding Activations . | . . . Robots Disrupted . | . . . Combat Hostiles . | . . . Robots Corrupted . | . . . Combat Hostiles . | . . . Parts Fried . | . . . Impact Corruptions . | . . . Robots Melted . | . . . Combat Hostiles . | . . . Parts Melted 1 | . . 1 Heat Transferred 722 | . . 722 Parts Sabotaged . | . . . Parts Stolen . | . . . Parts Stripped . | . . . Power Chain Reactions . | . . . Alert | -11 -10 -10 ------- Run | Yrd Mat Sub Maximum Alert Level . | . . . Low Security (%) 100 | 100 100 . Level 1 . | . . . Level 2 . | . . . Level 3 . | . . . Level 4 . | . . . Level 5 . | . . . High Security . | . . . Max Security . | . . . Peak Influence 85 | 5 85 . Initial . | . . . Average 27 | . 33 . Influence Increases 333 | 10 273 50 Destroy 0b10 Robot/C 200 | . 160 40 Destroy 0b10 Robot/NC 35 | 10 25 . Destroy Leader 36 | . 26 10 Successful Hack 17 | . 17 . Disable Machine 30 | . 30 . Lose Combat Pursuer 15 | . 15 . Influence Decreases 313 | 10 251 52 Entered New Map 11 | . . 11 Time Decay 282 | 10 251 21 Lost Part 20 | . . 20 Squads Dispatched . | . . . Investigation . | . . . Extermination . | . . . Reinforcement . | . . . Assault . | . . . Garrison . | . . . Intercept . | . . . Searches Triggered . | . . . Construction Impeded . | . . . Haulers Reinforced . | . . . Active Scanning Responses . | . . . Cargo Convoy Interrupts . | . . . Stealth | -11 -10 -10 --------- Run | Yrd Mat Sub Distress Signals 2 | . 2 . Communications Jammed . | . . . Distress Signals . | . . . Times Spotted 22 | . 14 8 Peak Tracking Total 3 | . 3 2 Tactical Retreats 1 | . 1 . Traps | -11 -10 -10 ------- Run | Yrd Mat Sub Traps Triggered 3 | . 2 1 Indirectly . | . . . Trap Hack Attempts . | . . . Triggered . | . . . Disarmed . | . . . Reprogrammed . | . . . Reused . | . . . Traps Extracted . | . . . Installed . | . . . Triggered . | . . . Machines | -11 -10 -10 ---------- Run | Yrd Mat Sub Machines Disabled 4 | . 2 2 Max in Single Turn 1 | . 1 1 Machines Repaired . | . . . Machines Dismantled . | . . . Machines Sabotaged . | . . . Overloaded Fab Kills . | . . . Hacking | -11 -10 -10 --------- Run | Yrd Mat Sub Machines Accessed 7 | . 6 1 Terminals 5 | . 5 . Fabricators . | . . . Repair Stations . | . . . Recycling Units 1 | . 1 . Scanalyzers . | . . . Garrison Access . | . . . Total Hacks 22 | . 21 1 Successful 14 | . 13 1 Failed 8 | . 8 . Catastrophic 1 | . 1 . Database Lockouts . | . . . Manual 16 | . 16 . Terminals 20 | . 20 . Fabricators . | . . . Repair Stations . | . . . Recycling Units 1 | . 1 . Scanalyzers . | . . . Garrison Access . | . . . Terminal Hacks 4 | . 3 1 Robot Analysis 1 | . 1 . Terminal Index 1 | . 1 . Zone Layout 1 | . 1 . Proto ID Catalog 1 | . . 1 Fabricator Hacks . | . . . Repair Station Hacks . | . . . Recycling Unit Hacks 1 | . 1 . Retrieve Components 1 | . 1 . Scanalyzer . | . . . Garrison Access Hacks . | . . . Unauthorized Hacks 9 | . 9 . Terminals 9 | . 9 . Botnet 3 | . 3 . Operators 1 | . 1 . Skim 5 | . 5 . Fabricators . | . . . Repair Stations . | . . . Recycling Units . | . . . Scanalyzers . | . . . Garrison Access . | . . . Data Cores Recovered . | . . . Used . | . . . Hacking Detections 2 | . 2 . Full Trace Events . | . . . Feedback Events . | . . . Feedback Blocked . | . . . Robot Schematics Acquired . | . . . Robots Built . | . . . Authchips . | . . . Time . | . . . Total Robot Build Rating . | . . . Part Schematics Acquired . | . . . Parts Built . | . . . Authchips . | . . . Time . | . . . Total Part Build Rating . | . . . Part Studies Acquired . | . . . Parts Repaired . | . . . Time . | . . . Parts Recycled . | . . . Recycled Matter . | . . . Retrieved Matter . | . . . Retrieved Components 1 | . 1 . Parts Scanalyzed . | . . . Part Schematics Acquired . | . . . Parts Damaged . | . . . Bothacking | -11 -10 -10 ------------ Run | Yrd Mat Sub Used RIF Installer . | . . . Robots Hacked . | . . . Non-combat . | . . . Combat . | . . . Robot Hacks Applied . | . . . Relay Couplers Released . | . . . Fabnet Peak Effective % . | . . . Robots Rewired . | . . . Allies Hacked . | . . . Hacks Repelled . | . . . Allies | -11 -10 -10 -------- Run | Yrd Mat Sub Total Allies . | . . . Largest Group . | . . . Highest-Rated Group . | . . . Highest-Rated Ally . | . . . Total Orders . | . . . Ally Attacks . | . . . Total Damage . | . . . Kills . | . . . Allies Corrupted . | . . . Allies Melted . | . . . Intel | -11 -10 -10 ------- Run | Yrd Mat Sub Active Infowar (turns) 1087 | 23 769 295 Terrain 175 | . . 175 Seismic 912 | 23 769 120 Robot Analysis Total 1 | . 1 . Derelict Logs Recovered 1 | . . 1 Drone Launches . | . . . Drone Recoveries . | . . . Exploration | -11 -10 -10 ------------- Run | Yrd Mat Sub Turns Passed 1339 | 155 769 415 Spaces Moved 651 | 80 371 200 Core 19 | 13 1 5 Treads 477 | 67 370 40 Legs . | . . . Wheels 155 | . . 155 Hover . | . . . Flight . | . . . Fastest Speed 50 | 50 160 110 Average Speed 147 | 142 160 126 Slowest Speed 350 | 160 250 350 Overloaded Moves . | . . . Propulsion Burnouts . | . . . Robots Hopped . | . . . Potential Cave-ins . | . . . Cave-ins Triggered . | . . . Exploration Rate (%) 23 | 4 52 15 Regions Visited 2 Branch Regions 1 Pre-discovered Areas 2 | . 2 . Known Exits Taken 1 | . 1 . Unknown Exits Taken 1 | 1 . . Scrap Searched . | . . . Spaces Dug . | . . . Terrain Destroyed . | . . . Melee . | . . . Projectile . | . . . AOE . | . . . Terrain Rammed . | . . . Walls Destroyed . | . . . Machines Disabled . | . . . Actions | -11 -10 -10 --------- Run | Yrd Mat Sub Total 861 | 106 462 293 Wait 79 | . 37 42 Move 649 | 79 370 200 Hop . | . . . Pick Up 26 | 11 8 7 Fast Attach . | . . . Attach 17 | 7 3 7 Detach . | . . . Swap 3 | . 1 2 Drop 2 | 1 1 . Fire 85 | 8 42 35 Melee . | . . . Ram . | . . . Kick . | . . . Crush . | . . . Escape Stasis . | . . . Rewire . | . . . Trap . | . . . Miscellaneous . | . . . Route ------- -11/Scrapyard -10/Materials (discovered 6 exits: *Mat x3 / [*Min x2] / *Sub) -10/Subcaves (discovered 1 exit: [*Scr]) History --------- Turn | Location | Event 4 | -11/Scrapyard | Discovered new exit (range 15) 156 | -11/Scrapyard | Entered Materials 256 | -10/Materials | Discovered new exit (range 16) 292 | -10/Materials | Discovered new exit (range 16) 318 | -10/Materials | Build established: Mutant 327 | -10/Materials | Discovered new exit (range 12) 528 | -10/Materials | Learned 2 Storage zone layouts 563 | -10/Materials | Identified exit to Subcaves 588 | -10/Materials | Identified exit to Materials 605 | -10/Materials | Learned location of 2 exits from Mines 612 | -10/Materials | Learned location of Mines (-9) 644 | -10/Materials | Learned location of 2 exits from Mines 925 | -10/Materials | Entered Subcaves 926 | -10/Subcaves | Approached by a straggling Scientist 927 | -10/Subcaves | Ambushed by Subdwellers from Twisted Machinery 1024 | -10/Subcaves | Core integrity fell below 50% 1076 | -10/Subcaves | Lost 6 parts (1p2n1u2w) 1133 | -10/Subcaves | Visited 4L-MR0's lab 1157 | -10/Subcaves | Found Prototype Power Core 1183 | -10/Subcaves | Identified Meta Core 1221 | -10/Subcaves | Core integrity fell below 20% 1267 | -10/Subcaves | Scientist uncovered a shortcut to Scraptown 1340 | -10/Subcaves | Destroyed by G-34 Mercenary with Small Laser Last Messages --------------- 01217_ ZL-TEB(R): "MADSUB!" 01224_ ZL-TEB(R) destroyed. UC-RLZ(c): "I think it's somewhere east of here" 01231_ Acquired Sub. Beam Cannon. 01232_ Sub. Monowheel shoots sparks and powers down. 01267_ UC-RLZ(c): "Hah, right again, there it is!" 01268_ UC-RLZ(c) exits level. 01279_ Lgt. Ion Engine destroyed. 01287_ Y-45 Defender destroyed. 01294_ Heat Sink fries itself beyond repair. 01324_ Sub. Monowheel destroyed. 01331_ Sub. Laser destroyed. 01331_ G-47 Trooper destroyed. 01335_ G-34 Mercenary suffers critical hit (Destroy). 01335_ Destroyed Ion Engine. 01338_ Sub. Laser destroyed. Map ----- +----------------------------------------------------+ | ?????????????????????????????????????????????????? | | ?????????????????????????????????????????????????? | | ?????????????????????????????????????????????????? | | ?????????????????????????????????????????????????? | | ?????????????????????????????????????????????????? | | ?????????????????????????????????????????????????? | | ?????????????????????????????????????????????????? | | ?????????????????????????????????????????????????? | | ?????????????????????????????????????????????????? | | ?????????????????????????????????????????????????? | | ?????????????????????????????????????????????????? | | ???????????????????#?????????????????????????????? | | ?????????????????????????#???????????????????????? | | ????????????????????#????????????????????????????? | | ???????????????#?????#??????????#????????????????? | | ?#??????????????????#????????????#???????????????? | | ??#?????????#?????????????##?????????????????????? | | ????#???????????????#????????????????????????????? | | ????????????#??????#?????????????????????????????? | | ?????#####????#????????#?????????????????????????? | | ###### ##????????????#?#???????????????????????? | | ###########???#?????????????#??????????? | | ## # #####????????????????????????? | | ###### # ##?????????##### ????????? | | ##????## ##?????? ???????? | | ##?????# # @###??# ???????? | | ##?????### ##### %#### ??????? | | ?????????# > #?### ??????? | | ????????# #??## g ??????? | | ???????# ##???## % ??????? | | #????? ##??##?# #### #?????????? | | ???? ##?????# #????????????????? | | ?? ######??#??# ##????????????????? | | ?? ##??????????# #?????????????????? | | ? ###?????#???? ????????????????? | | #????????????? ???????????????? | | ? #????????????? ??????????????? | | ?###????????????? ###### ?????????????? | | ???????????????? ##?????? ????????????? | | ???????????????? ##????????????????????? | | ?????????????????## ### ##?????????????????????? | | ??????????????????##??####???????????????????????? | | ?????????????????????????????????????????????????? | | ?????????????????????????????????????????????????? | | ?????????????????????????????????????????????????? | | ?????????????????????????????????????????????????? | | ?????????????????????????????????????????????????? | | ?????????????????????????????????????????????????? | | ?????????????????????????????????????????????????? | | ?????????????????????????????????????????????????? | +----------------------------------------------------+ Best States ------------- Heat Dissipation 25 Energy Generation 10 Energy Capacity 250 Matter Stores 300 Matter Capacity 300 Sight Range 16 Terrain Scan Range 16 Terrain Scan Density 10 Evasion (%) 50 Recoil Reduction 2 Item Schematics ----------------- None Robot Schematics ------------------ None Fabricated ------------ Nothing Repaired ---------- Nothing Studied --------- None Alien Tech Used ----------------- None Achievements -------------- None Challenges ------------ None Game ------ Seed ArcShieldNeutralizer Manual? 0 Play Time 00:08:29 Cumulative 673.0 hours Start 2026.01.30 @ 09:29:33 End 2026.01.30 @ 09:35:58 Sessions 1 Manual Loads 0 Difficulty Rogue Special Mode None Game No. 837 Rogue 837 Adventurer 0 Explorer 0 Win Type - Total 24 Types 11/1/3/3/2/0/2/2/0/0 Lore% 96 Gallery% 93 Achievement% 82 Wizard Run 0 Options --------- Layout 2 ASCII 0 Keyboard 0 Movement Mouse Keybinds 0 Fullscreen 1 Font 24/Proggy Map View 50x44 Zoom Use 0% Tactical HUD 1 Map Filters NONE Filters NONE Steam 1 RUN: 7d62822a-03ac-454e-8ebb-37136b7982d0